[Event "10th Amsterdam Science Park 2022"]
[Site "Amsterdam"]
[Date "2022.07.22"]
[Round "5.8"]
[White "Schilstra, Laurens"]
[Black "Baarslag, Ed"]
[Result "0-1"]
[ECO "B12"]
[WhiteElo "1993"]
[BlackElo "2161"]
[Annotator "TA"]
[PlyCount "116"]
[EventDate "2022.07.18"]
[EventCountry "NED"]
[SourceTitle "playchess.com"]
[Source "ChessBase"]
[SourceQuality "1"]
[TimeControl "5400+30"]

{[%evp 9,116,0,0,0,0,0,0,0,0,0,10,-59,-60,-100,-109,-107,-84,-98,-86,-83,-12,-10,-2,-4,0,-5,-26,-3,-6,-151,-102,-106,-116,-143,-137,-135,-144,-144,-133,-130,-145,-141,-131,-116,0,-85,-66,-106,-120,-284,-143,-133,-104,-225,-222,-179,0,0,0,0,47,0,0,0,0,0,0,-56,0,0,7,49,111,26,517,0,69,0,388,398,380,170,396,378,359,378,368,119,277,0,0,0,220,-167,-137,-588,-552,-12838,-12839,-12841,-12840,-12844,-12844,-12845,-12845,-12846,-12845,-12845,-12845]} 1. e4 {[%emt 0:00:03]} c6 {[%emt 0:00:26]} 2. d4 {[%emt 0:00:06]} d5 {[%emt 0:00:11]} 3. e5 {[%emt 0:00:17]} c5 {[%emt 0:00:32]} 4. dxc5 {[%emt 0:00:11]} e6 {[%emt 0:00:13]} 5. a3 {[%emt 0:00:05]} Bxc5 {[%emt 0:00:16]} 6. b4 {[%emt 0:00:05] B12: Caro-Kann: Advance Variation.} Be7 {[%emt 0:00:28]} 7. Bd3 {[%emt 0:08:52]} a5 {[%emt 0:01:48]} 8. b5 {[%emt 0:00:37] Prevents Nc6. The position is equal.} Nd7 {[%emt 0:00:22][%cal Bb8d7,Bd7e5,Be5g6][%mdl 32]} 9. Nf3 {[%emt 0:01:10]} f6 {[%emt 0:01:07]} 10. exf6 {[%emt 1:24:04]} (10. Bb2 $11) 10... Bxf6 $15 {[%emt 0:04:38] [#]} (10... Ngxf6 11. Bb2 $11) 11. c3 $146 {[%emt 0:00:00][%cal Of3g5]} ({Predecessor:} 11. Ra2 e5 12. Be2 Ne7 13. O-O O-O 14. c4 d4 15. Bd3 Nc5 16. Re1 Qd6 17. Bb2 Be6 18. a4 Qc7 19. Na3 b6 20. Qd2 Nxa4 21. Bxd4 Nc5 22. Bb2 {½-½ (22) Casares Bonals,A (1637)-Mut Company,G (1898) Badalona 2018}) 11... e5 $1 {[%emt 0:06:24][%cal Be6e5,Be5e4][%mdl 32]} 12. Bc2 {[%emt 0:00:00]} e4 {[%emt 0:01:43]} 13. Nd4 {[%emt 0:00:00]} (13. Qxd5 exf3 14. Qxf3 Ne5) (13. Qxd5 $2 exf3 14. Qxf3 Ne5 $19) 13... Ne5 $36 {[%emt 0:01:20][%mdl 2048] White is under strong pressure.} (13... Ne7) 14. O-O {[%emt 0:00:00]} Bg4 {[%emt 0:04:46]} ({Better is} 14... Ne7 $17) 15. f3 $11 {[%emt 0:00:00]} exf3 {[%emt 0:05:01]} 16. gxf3 {[%emt 0:00:00]} Bh5 {[%emt 0:00:53]} 17. Bf4 {[%emt 0:00:00]} Ne7 {[%emt 0:21:57][%cal Bg8e7,Be7f5,Bf5d4][%mdl 32]} 18. Re1 {[%emt 0:00:00]} N5g6 {[%emt 0:06:21]} 19. Be3 {[%emt 0:00:00]} (19. Ne6 $1 $11 {remains equal.} Qb6+ 20. Kh1) 19... Bxd4 {[%emt 0:01:59]} (19... O-O $142 {aiming for ...Nh4.} 20. Nd2 Qd6) 20. Qxd4 {[%emt 0:00:00]} O-O {[%emt 0:00:25]} 21. Bg5 {[%emt 0:00:00]} Nf5 {[%emt 0:08:34]} 22. Bxd8 {[%emt 0:00:00]} Nxd4 {[%emt 0:00:04]} 23. cxd4 {[%emt 0:00:00]} Raxd8 {[%emt 0:00:12]} 24. Nd2 {[%emt 0:00:00]} Rf4 {[%emt 0:02:59]} (24... Bxf3 $6 25. Bxg6 hxg6 26. Re7 $11) 25. Bxg6 {[%emt 0:00:00]} Bxg6 {[%emt 0:00:07]} 26. Re7 {[%emt 0:00:00]} Rc8 {[%emt 0:06:34]} ({Don't play} 26... Rxd4 $6 27. Nb3 Rf4 28. Nxa5 $11) ({Black should play} 26... b6 $17 27. Rb7 Rxd4) 27. Ra2 {[%emt 0:00:00]} (27. Rxb7 $11 {keeps the balance.} Rc2 28. Nb3) 27... b6 $17 {[%emt 0:01:37]} ({Much weaker is} 27... Rxd4 $6 28. Rxb7 Bc2 29. Nf1 $11) 28. Rb7 {[%emt 0:00:00]} Rf6 {[%emt 0:00:54] Black is more active.} 29. Rd7 $2 {[%emt 0:00:00]} (29. Kf2 $17 {might work better.}) 29... Re6 {[%emt 0:03:41]} (29... Bf5 $1 $19 {[%cal Rf5d7]} 30. Re7 Rg6+ 31. Kf2 Bh3) 30. Kf2 {[%emt 0:00:00]} Bd3 {[%emt 0:00:16]} 31. Rxd5 {[%emt 0:00:00]} (31. Nf1 $17 {was forced.}) 31... Re2+ $19 {[%emt 0:00:22]} 32. Kg3 {[%emt 0:00:00]} Bc4 $2 {[%emt 0:00:24]} (32... Rc1 $1 $19 {[%cal Rc1d1]} 33. Kf4 h6) 33. Nxc4 $11 {[%emt 0:00:00]} Rxa2 {[%emt 0:00:10]} 34. Nxb6 {[%emt 0:00:00][%mdl 4096] Endgame KRR-KRN} Rcc2 {[%emt 0:00:58]} (34... Rc3 $11) 35. a4 {[%emt 0:01:41]} (35. Rc5 $1 $14 {is superior.}) 35... Rg2+ {[%emt 0:01:35]} 36. Kf4 {[%emt 0:00:20]} Rxh2 {[%emt 0:00:17]} 37. Rd8+ {[%emt 0:01:31]} Kf7 {[%emt 0:00:08]} 38. d5 {[%emt 0:00:05]} (38. Rd7+ $11 Kf6 39. Rd6+ Kf7 40. Rd7+ Kf6 41. Rd6+ Kf7 42. Rd7+) 38... Rh4+ {[%emt 0:04:51]} (38... Rh6 $1 $15 39. Nc8 Rh4+ 40. Ke5 (40. Kg5 Rh3 $17) 40... Re2+ 41. Kd6 Rxa4 42. Rd7+ Kf6) 39. Ke5 {[%emt 0:03:31]} Re2+ {[%emt 0:01:15]} 40. Kd6 $1 {[%emt 0:00:35]} Rc2 {[%emt 0:05:53] Hoping for ...Rh6+.} 41. Rd7+ {[%emt 0:01:38]} (41. Rc8 $1 $16 {[%cal Rc8c2]} Rxc8 42. Nxc8) 41... Kf8 $2 {[%emt 0:00:14][%mdl 8192]} (41... Ke8 $1 $11 42. Re7+ Kd8) 42. Rd8+ $2 {[%emt 0:00:11]} (42. Rc7 $18 Rh6+ 43. Kd7) 42... Kf7 $14 {[%emt 0:00:09]} 43. Rd7+ $2 {[%emt 0:00:04][%mdl 8192]} (43. Rc8 $1 $14 Rxc8 44. Nxc8 Rxa4 45. b6) 43... Kf8 $18 {[%emt 0:00:13] And now ...Rh6+ would win.} 44. Re7 {[%emt 0:01:16]} h5 {[%emt 0:01:42]} (44... Rh6+ 45. Re6 Rh1 46. Nd7+ Kf7 47. Re7+ Kg6 48. Ne5+ Kf6 49. Rf7+ Kg5 50. Rxg7+ Kh6 51. Rg8 $18) 45. Nd7+ {[%emt 0:02:47]} Kg8 {[%emt 0:00:07]} 46. Nc5 {[%emt 0:01:54] b6 is the strong threat.} Rb4 {[%emt 0:09:24]} 47. Ne6 {[%emt 0:01:27]} Rxa4 {[%emt 0:00:00]} 48. Rxg7+ {[%emt 0:00:13]} Kh8 {[%emt 0:00:00]} 49. b6 $2 {[%emt 0:01:01]} (49. Ke5 $1 $18 {[%cal Re5f6]}) 49... Rb4 $11 {[%emt 0:00:00]} 50. Rb7 {[%emt 0:00:00] Strongly threatening Ke5.} a4 $2 {[%emt 0:00:00] [#]} (50... Rcb2 $11 {and Black has nothing to worry.}) 51. Nc5 $4 {[%emt 0:00:00][%mdl 8192]} (51. Ke5 $1 $18 {was the only winning move. Threatens to win with Rb8+.} a3 52. Rb8+ Kh7 53. Kf6) 51... a3 $19 {[%emt 0:00:00]} 52. Rb8+ $2 {[%emt 0:00:00][%mdl 8192] [#]} (52. Nd7 $17 a2 53. Ra7) 52... Kh7 $1 {[%emt 0:00:00] White must now prevent ...a2. Black is clearly winning.} 53. b7 {[%emt 0:00:00]} Rb6+ {[%emt 0:00:00]} 54. Kc7 {[%emt 0:00:00]} Rb5 {[%emt 0:00:00]} 55. Ra8 {[%emt 0:00:00]} Rcxc5+ {[%emt 0:00:00]} 56. Kd6 {[%emt 0:00:00]} Rxd5+ {[%emt 0:00:00]} 57. Kc6 {[%emt 0:00:00]} Rdc5+ {[%emt 0:00:00]} 58. Kd6 {[%emt 0:00:00]} Rc3 {[%emt 0:00:00] Quite a comeback for Black.  Weighted Error Value: White=0.82/Black=0.37} 0-1

[Event "10th Amsterdam Science Park 2022"]
[Site "Amsterdam"]
[Date "2022.07.22"]
[Round "5.9"]
[White "Bullen, Alex"]
[Black "Kanis, Sierk"]
[Result "1/2-1/2"]
[ECO "D04"]
[WhiteElo "2106"]
[BlackElo "1985"]
[Annotator "TA"]
[PlyCount "135"]
[EventDate "2022.07.18"]
[EventCountry "NED"]
[SourceTitle "playchess.com"]
[Source "ChessBase"]
[SourceQuality "1"]
[TimeControl "5400+30"]

{[%evp 9,135,0,0,-10,4,2,0,0,0,0,12,-4,6,-31,-31,-25,-37,-34,0,0,55,44,37,39,55,48,60,50,62,6,6,6,6,2,11,0,12,7,-3,-19,0,-9,-11,-25,-5,-24,-5,-27,-25,-26,-8,-8,-24,-56,-10,-12,0,-11,0,-100,0,-54,-43,-86,27,27,27,27,27,27,41,41,41,41,41,41,41,41,41,41,41,14,14,14,14,14,38,13,89,89,89,89,183,0,189,160,182,182,149,9,9,9,9,9,9,9,9,0,0,0,9,9,8,0,0,0,13,13,29,0,0,0,0,0,0,0,0,0]} 1. d4 {[%emt 0:00:04]} Nf6 {[%emt 0:00:08]} 2. Nf3 {[%emt 0:00:11]} c5 {[%emt 0:00:27]} 3. e3 {[%emt 0:00:10]} d5 {[%emt 0:00:28]} 4. h3 {[%emt 0:00:10]} Nc6 {[%emt 0:00:45]} 5. Bb5 {[%emt 0:00:42]} Bd7 {[%emt 0:02:57]} 6. O-O {[%emt 0:00:12] D04: Colle System.} e6 {[%emt 0:02:33]} 7. b3 {[%emt 0:01:35] [#]} cxd4 $146 {[%emt 0:01:18]} ({Predecessor:} 7... Rc8 8. Bb2 cxd4 9. exd4 Nb4 10. Bxd7+ Qxd7 11. c4 Nc6 12. Qe2 Be7 13. Nbd2 O-O {½-½ (19) Egorov,V (2041)-Sloboda,V (2188) LSS email 2017}) 8. exd4 {[%emt 0:00:28]} Rc8 {[%emt 0:01:57]} 9. Re1 {[%emt 0:17:03]} Bd6 {[%emt 0:01:24]} 10. Bb2 {[%emt 0:03:12]} O-O {[%emt 0:00:41]} 11. a3 {[%emt 0:02:28]} Ne4 {[%emt 0:01:28]} 12. Bd3 {[%emt 0:01:07]} f5 {[%emt 0:00:40]} 13. c4 {[%emt 0:01:51]} Qf6 {[%emt 0:03:03]} (13... Be8 $5 {[%cal Re8h5]}) 14. Nc3 {[%emt 0:07:57]} Be8 {[%emt 0:01:04]} (14... Ne7 $11) 15. cxd5 $14 {[%emt 0:02:37]} Nxc3 {[%emt 0:03:16]} 16. Bxc3 {[%emt 0:00:27]} exd5 {[%emt 0:02:25]} 17. Ne5 {[%emt 0:01:51]} Qh4 {[%emt 0:06:26]} 18. Qf3 {[%emt 0:10:55]} Ne7 {[%emt 0:03:02]} 19. Bb2 {[%emt 0:06:03] White is more active.} (19. Bf1 $1 $14) 19... Bh5 $11 {[%emt 0:01:15]} 20. Qg3 {[%emt 0:01:48]} Qxg3 {[%emt 0:07:44]} 21. fxg3 {[%emt 0:00:30]} Be8 {[%emt 0:05:16]} 22. Re2 {[%emt 0:01:32]} Nc6 {[%emt 0:04:27]} 23. Rf1 {[%emt 0:02:09]} g6 {[%emt 0:03:06]} 24. g4 {[%emt 0:01:39][%cal Rg4f5]} fxg4 {[%emt 0:03:16]} 25. Rxf8+ {[%emt 0:00:24]} Bxf8 {[%emt 0:02:10]} 26. hxg4 {[%emt 0:02:29]} Bg7 {[%emt 0:02:35]} 27. b4 {[%emt 0:02:15]} Bf7 {[%emt 0:01:29]} 28. Kf2 {[%emt 0:09:54]} Nxe5 {[%emt 0:02:24]} 29. dxe5 {[%emt 0:00:18]} Be6 {[%emt 0:00:24]} 30. g5 {[%emt 0:03:10]} Bf8 {[%emt 0:01:43]} 31. Bd4 {[%emt 0:01:43]} b6 {[%emt 0:04:23]} (31... Be7 $15) 32. Rc2 {[%emt 0:04:05]} Be7 {[%emt 0:00:55]} 33. Be3 {[%emt 0:00:54]} Kf7 {[%emt 0:00:41]} 34. Bf4 {[%emt 0:01:53]} (34. Rxc8 $11 Bxc8 35. Be2) 34... Bd7 {[%emt 0:01:53]} (34... Rxc2+ $17 35. Bxc2 Bf5) 35. Ke3 {[%emt 0:01:25]} (35. Rxc8 $11 Bxc8 36. Kg3) 35... a5 $15 {[%emt 0:03:17]} 36. Kd4 {[%emt 0:07:10]} Ke6 {[%emt 0:03:13]} (36... axb4 $17 37. Rxc8 Bxc8 38. axb4 Bxb4 39. Kxd5 Bb7+ 40. Kd4 Bc5+ 41. Kc3 Bxg2 42. Bc4+ Ke7) 37. Bd2 $11 {[%emt 0:00:53]} axb4 {[%emt 0:09:24]} 38. axb4 {[%emt 0:00:23]} Rxc2 {[%emt 0:01:03]} 39. Bxc2 {[%emt 0:00:03][%mdl 4096] Endgame KBB-KBB} Bb5 {[%emt 0:03:29]} 40. Bd1 {[%emt 0:00:41]} Bc4 $1 {[%emt 0:01:52]} 41. Bg4+ {[%emt 0:01:43]} Kf7 {[%emt 0:00:05]} 42. e6+ {[%emt 0:04:06]} Ke8 {[%emt 0:01:12]} 43. Bf3 {[%emt 0:00:18]} Bd6 $1 {[%emt 0:03:02]} 44. Bxd5 {[%emt 0:00:35]} Ba6 {[%emt 0:01:42]} 45. Ke4 {[%emt 0:00:00]} Bf1 {[%emt 0:00:00]} 46. Kf3 {[%emt 0:00:00]} Ke7 {[%emt 0:00:00]} 47. Bc3 {[%emt 0:00:00]} Ke8 {[%emt 0:00:00]} 48. Kf2 {[%emt 0:00:00]} Ba6 {[%emt 0:00:00]} (48... Bb5 $11 {keeps the balance.}) 49. Bc6+ $1 $16 {[%emt 0:00:00]} Ke7 {[%emt 0:00:00]} 50. Bd7 $1 {[%emt 0:00:00] Black must now prevent Bf6+.} Bc4 {[%emt 0:00:00]} (50... Bf4 $16) 51. Bf6+ $18 {[%emt 0:00:00]} Kf8 {[%emt 0:00:00] [#]} 52. b5 $1 {[%emt 0:00:00]} Bc5+ {[%emt 0:00:00]} 53. Kf3 {[%emt 0:00:00]} Bd5+ {[%emt 0:00:00] [#]} 54. Kf4 {[%emt 0:00:00]} (54. Kg3 $1 $16) 54... Bxg2 $11 {[%emt 0:00:00]} 55. Ke5 {[%emt 0:00:00]} Bf3 {[%emt 0:00:00]} 56. Bd8 {[%emt 0:00:00]} Bg2 {[%emt 0:00:00]} 57. Bc6 {[%emt 0:00:00]} Bh3 {[%emt 0:00:00]} 58. Bd5 {[%emt 0:00:00]} Bf1 {[%emt 0:00:00]} 59. Bc6 {[%emt 0:00:00]} Bh3 {[%emt 0:00:00]} 60. Bf6 {[%emt 0:00:00]} Bg4 {[%emt 0:00:00]} 61. Bd7 {[%emt 0:00:00][%cal Oe6e7] e7+! would kill now.} Bf3 {[%emt 0:00:00]} 62. Kf4 {[%emt 0:00:24]} Bd5 {[%emt 0:00:00]} 63. Bd8 {[%emt 0:01:51]} Bg2 {[%emt 0:01:10]} 64. Bc7 {[%emt 0:01:44]} Ke7 {[%emt 0:00:23] The position is equal.} 65. Ke5 {[%emt 0:01:35]} Bf3 {[%emt 0:01:40]} 66. Kf4 {[%emt 0:00:47]} Bd5 {[%emt 0:00:29]} 67. Ke5 {[%emt 0:00:40]} Bf3 {[%emt 0:00:16]} 68. Kf4 {[%emt 0:01:19] Weighted Error Value: White=0.19 (very precise) /Black=0.17 (very precise)} 1/2-1/2

[Event "10th Amsterdam Science Park 2022"]
[Site "Amsterdam"]
[Date "2022.07.22"]
[Round "5.10"]
[White "Klaren, Duncan"]
[Black "De Groote, Ewoud"]
[Result "0-1"]
[ECO "B15"]
[WhiteElo "1942"]
[BlackElo "2245"]
[Annotator "TA"]
[PlyCount "82"]
[EventDate "2022.07.18"]
[EventCountry "NED"]
[SourceTitle "playchess.com"]
[Source "ChessBase"]
[SourceQuality "1"]
[TimeControl "5400+30"]

{[%evp 16,82,42,40,47,43,37,24,77,83,86,50,41,27,26,2,15,0,10,0,70,22,28,13,66,57,82,32,49,0,0,0,0,0,0,0,0,-87,0,-104,0,-148,-144,-151,-145,-144,0,0,0,0,0,0,0,0,0,-7,0,-402,-396,-384,-381,-1959,-1895,-2165,-2033,-29995,-29996,-29996,-29997]} 1. e4 {[%emt 0:00:05]} c6 {[%emt 0:01:05]} 2. d4 {[%emt 0:00:17]} d5 {[%emt 0:00:15]} 3. Nc3 {[%emt 0:00:46]} dxe4 {[%emt 0:00:56]} 4. Nxe4 {[%emt 0:00:10]} Nf6 {[%emt 0:00:37]} 5. Nxf6+ {[%emt 0:00:33]} exf6 {[%emt 0:00:05]} 6. c3 {[%emt 0:00:36]} Bd6 {[%emt 0:02:04]} 7. Bd3 {[%emt 0:03:35]} O-O {[%emt 0:04:15]} 8. Ne2 {[%emt 0:01:07]} Qc7 {[%emt 0:02:06]} 9. Qc2 {[%emt 0:08:05]} h5 $1 {[%emt 0:01:38][%mdl 4] is currently scoring better than 9...h6. B15: Caro-Kann: 3 Nc3: 3...g6 and 3...dxe4 4 Nxe4 Nf6 5 Nxf6+ exf6.} 10. Be3 {[%emt 0:02:31]} Re8 {[%emt 0:10:06]} 11. O-O-O {[%emt 0:08:02]} h4 {[%emt 0:11:15]} (11... Be6 $11) 12. g3 {[%emt 0:09:07]} h3 {[%emt 0:13:56] [#]} 13. Bf4 $146 {[%emt 0:06:21]} ({Predecessor:} 13. Bh7+ Kf8 14. Bf5 Nd7 15. Bxh3 Nb6 16. Bxc8 Qxc8 17. Qh7 Qg4 18. Rhe1 Nd5 19. h3 {1-0 (65) Dourerassou,J (2477)-Okhotnik,V (2350) Tornelo INT 2020}) 13... Nd7 {[%emt 0:10:19]} 14. Rde1 {[%emt 0:09:00]} Nf8 {[%emt 0:05:01]} 15. Bxd6 {[%emt 0:01:31]} Qxd6 {[%emt 0:00:01]} 16. Nf4 {[%emt 0:01:21]} Bd7 {[%emt 0:03:26]} 17. Bf5 {[%emt 0:05:22]} c5 {[%emt 0:05:26]} (17... Ne6 $11 18. Bxh3 Nxf4 19. Bxd7 Rxe1+ 20. Rxe1 Ng2) 18. Rd1 {[%emt 0:10:49]} ({White should play} 18. Rxe8 $14 Rxe8 19. Bxd7 Qxd7 20. dxc5) 18... Rad8 $11 {[%emt 0:08:08]} 19. Bxd7 {[%emt 0:03:14]} (19. dxc5 {with more complications.} Qxc5 20. Bxd7 Nxd7 21. Nxh3 Ne5 22. Rhe1) 19... Rxd7 {[%emt 0:01:20]} (19... Nxd7 $11 20. dxc5 Qc6) 20. dxc5 $14 {[%emt 0:06:08]} Qxc5 {[%emt 0:00:54]} 21. Rxd7 {[%emt 0:01:04]} ({Better is} 21. Nxh3 $16 Qc6 22. Nf4) 21... Nxd7 {[%emt 0:00:01]} 22. Qa4 {[%emt 0:00:42]} (22. Rd1 $14 {is more appropriate.} Nb8 23. Nxh3) 22... b5 $11 {[%emt 0:12:41]} 23. Qd4 {[%emt 0:01:00]} Qf5 {[%emt 0:00:26][%cal Ob5b4]} 24. Rd1 {[%emt 0:01:28]} Ne5 {[%emt 0:00:41]} 25. Nd5 {[%emt 0:00:49][%cal Bf4d5,Bd5e3,Be3c2][%mdl 32]} Ng6 {[%emt 0:04:21]} 26. b3 {[%emt 0:10:48]} (26. f4 $11) 26... a5 {[%emt 0:00:34]} (26... Qf3 $17 {Threatens to win with ...Re2.} 27. Qd3 (27. Qxa7 Re2 $17) 27... Qxf2) 27. Qd2 {[%emt 0:01:44] Inhibits Re2.} (27. f4 $1 $11 {was the only way to keep the balance.}) 27... a4 {[%emt 0:00:28]} (27... Qf3 $17 {Strongly threatening ...Re2.} 28. Ne3 Ne5) 28. Kb2 {[%emt 0:01:55]} (28. f4 $11 {keeps the balance.}) 28... Qf3 $17 {[%emt 0:00:14] [#] And now ...Re2 would win.} 29. Ne3 {[%emt 0:01:15]} f5 {[%emt 0:00:07] Black is more active.} 30. Re1 {[%emt 0:02:59]} Ra8 {[%emt 0:01:35]} (30... Ne5 $17 {...Qe4 is the strong threat.} 31. Kb1 Qe4+ 32. Qc2 Ng4 33. Qxe4 Rxe4) 31. Nc2 $11 {[%emt 0:00:38]} f4 {[%emt 0:00:41]} 32. gxf4 {[%emt 0:01:23]} ({Reject} 32. Nd4 Qg2 33. Qe2 Qxh2 $17) 32... Nxf4 {[%emt 0:00:42]} 33. Re3 {[%emt 0:00:09] Inhibits Nd3+.} Qc6 {[%emt 0:00:50][%cal Oa4a3]} 34. Rg3 {[%emt 0:00:44]} Qf6 {[%emt 0:00:30] [#] Hoping for ...Rd8.} 35. Rf3 {[%emt 0:01:04]} g5 {[%emt 0:00:11] aiming for ...Rd8.} 36. Rg3 $2 {[%emt 0:00:05][%mdl 8192]} (36. Qd4 $11 {and White is okay.} Qg6 37. Re3) 36... Rd8 $19 {[%emt 0:00:34]} 37. Qe3 {[%emt 0:01:18]} ({But not} 37. Nd4 b4 38. Re3 a3+ 39. Kc2 bxc3 40. Qxc3 Rxd4 $19) 37... Rd3 {[%emt 0:00:17]} 38. Qc5 {[%emt 0:00:11]} (38. Qe8+ Kg7 39. Kc1) 38... Rxg3 {[%emt 0:00:16]} 39. Qc8+ {[%emt 0:00:04]} Kg7 {[%emt 0:00:12] ( -> ...Nd3+)} 40. fxg3 {[%emt 0:00:59]} Nd3+ {[%emt 0:00:18]} 41. Ka3 {[%emt 0:00:57]} Qf1 {[%emt 0:01:15] Weighted Error Value: White=0.74/Black=0.16 (very precise)} 0-1

[Event "10th Amsterdam Science Park 2022"]
[Site "Amsterdam"]
[Date "2022.07.23"]
[Round "6.1"]
[White "Van der Poel, Henk"]
[Black "Van Delft, Merijn"]
[Result "1/2-1/2"]
[ECO "B23"]
[WhiteElo "2210"]
[BlackElo "2383"]
[Annotator "TA"]
[PlyCount "68"]
[EventDate "2022.07.18"]
[EventCountry "NED"]
[SourceTitle "playchess.com"]
[Source "ChessBase"]
[SourceQuality "1"]
[TimeControl "5400+30"]

{[%evp 9,68,7,20,0,8,-6,2,-14,13,6,6,14,15,10,3,23,44,24,25,16,36,-15,-16,-25,0,-35,-38,-84,-77,-70,-72,-64,73,87,59,5,8,8,18,10,10,0,0,-12,-14,-21,0,0,2,17,12,-131,-115,-142,-124,-123,0,-37,-18,-9,58]} 1. e4 {[%emt 0:00:05]} c5 {[%emt 0:01:32]} 2. Nc3 {[%emt 0:00:25]} d6 {[%emt 0:00:32]} 3. d4 {[%emt 0:00:32]} cxd4 {[%emt 0:00:20]} 4. Qxd4 {[%emt 0:00:13]} Nc6 {[%emt 0:00:48]} 5. Bb5 {[%emt 0:00:57]} Bd7 {[%emt 0:00:30]} 6. Bxc6 {[%emt 0:00:21] B23: Closed Sicilian: Lines without g3.} Bxc6 {[%emt 0:00:08]} 7. Bg5 {[%emt 0:00:51] is the legacy move (7.Nf3).} h6 {[%emt 0:04:54]} 8. Be3 {[%emt 0:00:28]} e5 {[%emt 0:07:40]} 9. Qd3 {[%emt 0:04:52]} Nf6 {[%emt 0:04:12]} 10. O-O-O {[%emt 0:01:14]} Qa5 {[%emt 0:01:45] [#]} 11. Nge2 $146 {[%emt 0:09:55]} ({Predecessor:} 11. h3 Be7 12. f4 O-O 13. Nge2 b5 14. Kb1 b4 15. Nd5 Nxd5 16. exd5 Bb5 17. Qd2 Bxe2 18. Qxe2 exf4 {½-½ (41) Inants,A (2178)-Akhmadeev,V (2438) Saratov 2006}) 11... Rd8 {[%emt 0:02:33]} 12. Kb1 {[%emt 0:19:53]} g6 {[%emt 0:11:50]} (12... d5 {looks sharper.} 13. exd5 Nxd5 14. Qf5 Bd6) 13. Nd5 {[%emt 0:09:59]} Nxd5 {[%emt 0:02:50]} 14. exd5 {[%emt 0:00:08]} Bb5 {[%emt 0:02:30]} 15. Qc3 {[%emt 0:02:13]} (15. c4 $14 Bd7 16. Nc3) 15... Qa6 $1 $11 {[%emt 0:03:56]} 16. Ng3 {[%emt 0:01:56]} Bg7 {[%emt 0:09:07]} 17. f4 {[%emt 0:02:26]} f5 $1 {[%emt 0:10:21]} 18. fxe5 {[%emt 0:03:37]} (18. Rhe1 $15) 18... O-O {[%emt 0:13:26] Threatens to win with ...f4.} 19. Qd2 {[%emt 0:08:05]} dxe5 {[%emt 0:01:01] White must now prevent ...f4.} 20. Bxh6 {[%emt 0:02:15]} f4 {[%emt 0:04:17]} (20... Bc4 $15 {stays ahead.} 21. b3 Bxd5) 21. Bxg7 $16 {[%emt 0:00:40]} Kxg7 {[%emt 0:00:14] [#]} 22. Ne4 {[%emt 0:02:02]} (22. Qb4 $1 $14 Rfe8 (22... Bc4 23. Qe7+) 23. Ne4) 22... Bc4 $40 {[%emt 0:00:09][%csl LRa2,LRd5][%cal Bb5c4,Bc4d5,Bd5c6][%mdl 160] White needs to defend precisely.} 23. b3 {[%emt 0:04:14]} Bxd5 {[%emt 0:01:59] [#]} 24. Qc3 $1 {[%emt 0:03:11]} Qe6 {[%emt 0:01:52]} 25. Nc5 {[%emt 0:04:20]} Qf6 {[%emt 0:01:59]} 26. Rhe1 {[%emt 0:03:29]} Rfe8 {[%emt 0:00:26]} (26... Bxg2 $2 27. Nd7 Rc8 28. Qd2 $18) 27. Rd2 {[%emt 0:06:32]} Bc6 {[%emt 0:04:09] ...Rxd2 is the strong threat.} (27... e4 $5 {[%cal Rf6c3]} 28. Qxf6+ Kxf6 29. Nxe4+ Bxe4 30. Rxd8 Bxc2+ 31. Kxc2 Rxd8 $11) 28. Rxd8 {[%emt 0:04:05]} Qxd8 {[%emt 0:00:53]} ({Don't take} 28... Rxd8 29. Ne6+ $1 {[%mdl 512]} Qxe6 30. Rxe5 $16) 29. Nd3 {[%emt 0:01:10]} Qf6 {[%emt 0:02:21]} 30. Re2 {[%emt 0:00:34]} (30. Rxe5 $11 Rxe5 31. Nxe5) 30... e4 $17 {[%emt 0:02:21]} 31. Qxf6+ {[%emt 0:00:10]} Kxf6 {[%emt 0:00:06]} 32. Nxf4 {[%emt 0:00:10] [#]} e3 {[%emt 0:02:09]} ({Black should play} 32... Kf5 $1 $17 {[%cal Rf5f4]} 33. g3 e3) 33. Kc1 {[%emt 0:02:10]} Kf5 {[%emt 0:00:29][%mdl 1024] Black has compensation.} 34. Nd3 {[%emt 0:00:57]} Rh8 {[%emt 0:01:38] Weighted Error Value: White=0.22 (precise) /Black=0.15 (very precise)} (34... g5 $11) 1/2-1/2